bitfinex-derivatives/quotes_SOLF0:USTF0_20251207
["timestamp","ask_amount","ask_price","bid_price","bid_amount"]
[1765114235648,1.92,131.88,131.81,3.23]
[1765114235848,1.92,131.85,131.83,0.05092466]
[1765114237652,1.92,131.84,131.77,3.23]
[1765114238447,0.04843765,131.82,131.79,0.05606177]
[1765114238651,1.92,131.81,131.79,0.05606177]
[1765114240155,67.32,131.81,131.79,0.05606177]
[1765114240356,1.92,131.8,131.79,0.05606177]
[1765114240959,1.92,131.8,131.76,3.23]
[1765114241257,1.92,131.8,131.74,3.23]
[1765114241458,1.92,131.79,131.72,3.23]
[1765114242055,1.92,131.76,131.74,0.05505796]
[1765114250766,1.92,131.76,131.74,3.16505796]
[1765114251769,67.39583422,131.77,131.74,3.16505796]
[1765114252274,1.92,131.76,131.74,3.16505796]
[1765114253763,65.47583422,131.77,131.74,3.16505796]
[1765114255577,67.39583422,131.77,131.74,3.16505796]
[1765114257178,65.47583422,131.77,131.74,3.16505796]
[1765114257479,1.92,131.76,131.74,3.16505796]
[1765114257671,67.39583422,131.77,131.74,3.16505796]
[1765114258575,1.92,131.76,131.74,0.05505796]
[1765114260378,8.7502,131.76,131.74,0.05505796]
[1765114260675,1.92,131.75,131.74,0.05505796]
[1765114260982,8.7507,131.75,131.71,3.37]
[1765114261278,1.92,131.74,131.7,3.37]
[1765114261775,6.8307,131.75,131.7,3.37]
[1765114261981,1.92,131.75,131.7,3.37]
[1765114262184,0.0559116,131.74,131.72,3.37]
[1765114262883,1.9759116,131.74,131.71,0.04879723]
[1765114263685,1.9759116,131.74,131.66,3.37]
[1765114263686,1.92,131.72,131.66,3.37]
[1765114263982,1.92,131.71,131.66,3.37]
[1765114264486,1.97717932,131.7,131.67,3.4196669]
[1765114266680,1.92,131.75,131.68,109.6791]
[1765114266883,1.98,131.78,131.72,3.37]
[1765114267079,1.98,131.8,131.74,3.37]
[1765114267279,1.98,131.81,131.74,3.37]
[1765114267688,1.98,131.81,131.75,6.8303]
[1765114267887,0.05499094,131.79,131.78,3.37]
[1765114273593,0.05499094,131.79,131.77,0.0529476]
[1765114273886,0.05499094,131.79,131.77,3.4229476]
[1765114274084,0.05499094,131.79,131.77,10.2521476]
[1765114274285,0.05499094,131.79,131.78,3.37]
[1765114276585,65.42,131.82,131.8,3.37]
[1765114277293,1.98,131.84,131.8,3.37]
[1765114277792,2.08898493,131.83,131.81,0.05583182]
[1765114282193,0.04898493,131.83,131.81,3.24583182]
[1765114283487,0.04898493,131.83,131.81,10.07293182]
[1765114283686,0.04898493,131.83,131.82,3.19]
[1765114285089,2.04,131.88,131.83,3.19]
[1765114285992,2.0913444,131.87,131.84,3.24198039]
[1765114287887,2.0913444,131.87,131.84,10.06788039]
[1765114288101,2.0913444,131.87,131.85,3.19]
[1765114288102,0.0513444,131.87,131.85,3.19]
[1765114288797,0.0513444,131.87,131.86,3.19]
[1765114289491,2.04,131.93,131.87,106.1558]
[1765114289692,67.4,131.95,131.89,3.19]
[1765114290201,2.04,131.94,131.9,3.19]
[1765114290397,65.36,131.95,131.91,3.19]
[1765114290398,67.4,131.95,131.91,3.19]
[1765114290594,0.05563371,131.94,131.92,3.23970794]
[1765114291402,2.09563371,131.94,131.92,0.04970794]
[1765114292510,2.04,131.93,131.85,3.19]
[1765114293402,0.05311537,131.9,131.88,0.04869116]
[1765114293899,2.09311537,131.9,131.88,0.04869116]
[1765114296804,0.05311537,131.9,131.88,3.23869116]
[1765114298209,67.36,131.96,131.89,3.19]
[1765114298609,2.04,131.95,131.89,3.19]
[1765114299405,0.05388845,131.93,131.91,3.24642712]
[1765114300014,2.09388845,131.93,131.91,0.05642712]
[1765114307502,0.05388845,131.93,131.91,3.39642712]
[1765114308405,2.08388845,131.93,131.91,3.39642712]
[1765114308601,2.08388845,131.93,131.91,0.05642712]
[1765114316710,2.08388845,131.93,131.91,3.24642712]
[1765114317515,2.08388845,131.93,131.91,0.05642712]
[1765114318816,2.08388845,131.93,131.91,3.24642712]
[1765114325026,0.05388845,131.93,131.91,3.24642712]
[1765114328224,0.05388845,131.93,131.91,10.06852712]
[1765114328418,8.849,131.98,131.92,3.19]
[1765114328620,74.109,131.98,131.92,3.19]
[1765114329319,2.03,131.97,131.93,3.19]
[1765114329521,0.056275,131.96,131.94,3.24699216]
[1765114330423,2.086275,131.96,131.94,0.05699216]
[1765114331024,2.086275,131.96,131.94,3.24699216]
[1765114331222,2.086275,131.96,131.94,0.05699216]
[1765114334527,2.086275,131.96,131.94,3.24699216]
[1765114334728,0.056275,131.96,131.94,3.24699216]
[1765114344634,2.086275,131.96,131.94,0.05699216]
[1765114345929,2.086275,131.96,131.94,3.15699216]
[1765114346931,0.056275,131.96,131.94,3.15699216]
[1765114347927,0.056275,131.96,131.95,3.1]
[1765114350139,67.25,132.0,131.96,3.1]
[1765114351030,2.03,132.03,131.97,3.1]
[1765114351229,0.05559141,132.01,132.0,3.1]
[1765114351432,2.03,132.05,132.0,3.1]
[1765114352433,2.08032673,132.04,132.0,3.1]
[1765114352745,2.08032673,132.04,132.01,3.15140875]
[1765114354447,2.08032673,132.04,132.01,0.05140875]
[1765114355344,2.03,132.03,132.01,0.05140875]
[1765114357447,2.03,132.02,131.96,9.9194]
[1765114358342,2.03,132.02,131.96,3.1]
[1765114358549,2.03,131.99,131.98,0.05735192]
[1765114364160,2.03,131.99,131.94,3.1]
[1765114365257,8.8484,131.99,131.95,0.05451947]
[1765114365460,2.03,131.98,131.95,0.05451947]
[1765114366850,2.03,131.96,131.95,0.05451947]
[1765114367253,1.98,131.95,131.88,3.1]
[1765114367451,1.98,131.95,131.91,3.28]
[1765114368161,1.98,131.96,131.92,3.28]
[1765114368462,0.05349572,131.95,131.94,3.28]
[1765114369059,2.03349572,131.95,131.93,0.05189317]
[1765114374669,0.05349572,131.95,131.93,3.33189317]
[1765114380176,8.85389572,131.95,131.93,3.33189317]
[1765114380481,1.98,131.94,131.9,3.11]
[1765114380682,67.16,131.93,131.9,3.11]
[1765114380977,73.9813,131.93,131.9,3.11]
[1765114381489,74.02928757,131.93,131.9,3.16093288]
[1765114383281,65.22798757,131.93,131.9,3.16093288]
[1765114384173,67.20798757,131.93,131.9,3.16093288]
[1765114384479,1.98,131.98,131.9,3.16093288]
[1765114384680,67.16,131.98,131.9,3.11]
[1765114384878,2.03,131.97,131.9,3.11]
[1765114385275,8.8493,131.97,131.91,3.11]
[1765114385584,0.05005884,131.95,131.93,3.16652566]
[1765114392773,2.08,132.03,131.95,3.11]
[1765114393282,6.8173,132.01,131.95,3.11]
[1765114393482,2.08,132.0,131.95,3.11]
[1765114393787,2.08,131.98,131.96,0.05347817]
[1765114394786,2.08,131.98,131.93,3.11]
[1765114394981,2.08,131.98,131.9,3.11]
[1765114395990,0.04936322,131.95,131.93,3.16812277]
[1765114396376,2.12936322,131.95,131.93,3.16812277]
[1765114397081,0.04936322,131.95,131.93,3.16812277]
[1765114397990,2.12936322,131.95,131.93,3.16812277]
[1765114398382,2.12936322,131.95,131.93,0.05812277]
[1765114399390,2.12936322,131.95,131.89,3.14]
[1765114399391,2.08,131.93,131.89,3.14]
[1765114400286,2.13166897,131.92,131.9,0.05061069]
[1765114401689,2.13166897,131.92,131.9,3.19061069]
[1765114404394,2.13166897,131.92,131.9,0.05061069]
[1765114404895,2.08,131.89,131.85,3.14]
[1765114405885,2.13258994,131.88,131.86,0.0496001]
[1765114406088,2.12960188,131.88,131.86,0.0496001]
[1765114406997,2.12960188,131.88,131.81,3.14]
[1765114407598,2.08,131.87,131.81,3.14]
[1765114407995,0.05295948,131.85,131.83,0.04869114]
[1765114408491,0.05295948,131.85,131.83,3.18869114]
[1765114411503,2.08,131.84,131.83,0.04869114]
[1765114411799,2.13295948,131.85,131.83,0.04869114]
[1765114413300,0.05295948,131.85,131.83,3.18869114]
[1765114414901,0.05295948,131.85,131.83,0.04869114]
[1765114414902,2.13295948,131.85,131.83,0.04869114]
[1765114416290,67.26,131.84,131.83,0.04869114]
[1765114417101,2.03,131.83,131.78,3.14]
[1765114417702,2.03,131.82,131.76,9.9697]
[1765114418101,2.0840398,131.8,131.78,0.05701604]
[1765114422505,0.0540398,131.8,131.78,3.19701604]
[1765114424204,0.0540398,131.8,131.79,3.14]
[1765114424701,8.8541,131.88,131.81,3.14]
[1765114424906,74.0541,131.88,131.81,3.14]
[1765114425102,67.23,131.88,131.83,6.8262]
[1765114425301,65.2,131.88,131.84,3.14]
[1765114425603,0.05637139,131.87,131.85,3.19833684]
[1765114436422,0.05637139,131.87,131.85,0.05833684]
[1765114436423,2.09637139,131.87,131.85,0.05833684]
[1765114438217,2.09637139,131.87,131.85,3.14833684]
[1765114439120,0.05637139,131.87,131.85,3.14833684]
[1765114440515,2.09637139,131.87,131.85,3.14833684]
[1765114443011,0.05637139,131.87,131.85,3.14833684]
[1765114443818,65.16,131.92,131.86,3.09]
[1765114444814,65.16,131.92,131.88,0.05186712]
[1765114445122,0.05800999,131.9,131.89,3.09]
[1765114446726,2.09,131.95,131.89,3.09]
[1765114446929,2.09,131.95,131.9,3.09]
[1765114447424,65.16,131.96,131.9,3.09]
[1765114447727,67.31,131.96,131.9,3.09]
[1765114447928,2.2048014,131.94,131.92,0.04962437]
[1765114448132,2.2048014,131.94,131.87,3.09]
[1765114448325,2.15,131.94,131.87,3.09]
[1765114448730,2.15,131.92,131.87,3.09]
[1765114449224,2.20101802,131.91,131.88,3.14109869]
[1765114451630,0.05101802,131.91,131.88,3.14109869]
[1765114452721,0.05101802,131.91,131.88,9.96459869]
[1765114452933,0.05101802,131.91,131.89,3.09]
[1765114454230,2.20101802,131.91,131.88,3.14109869]
[1765114455030,0.05101802,131.91,131.88,3.14109869]
[1765114460741,2.20101802,131.91,131.88,0.05109869]
[1765114461534,67.32101802,131.91,131.88,0.05109869]
[1765114461738,2.15,131.89,131.83,10.076]
[1765114461936,2.15,131.89,131.84,3.25]
[1765114462739,2.20688962,131.88,131.85,0.05688592]
[1765114463342,0.05688962,131.88,131.85,3.30688592]
[1765114463840,2.20688962,131.88,131.85,3.30688592]
[1765114467147,0.05688962,131.88,131.85,3.30688592]
[1765114468650,2.20688962,131.88,131.85,3.30688592]
[1765114468849,0.05688962,131.88,131.85,3.30688592]
[1765114469249,2.20688962,131.88,131.85,3.30688592]
[1765114470544,0.05688962,131.88,131.85,3.30688592]
[1765114472352,2.20688962,131.88,131.85,0.05688592]
[1765114472549,2.20688962,131.88,131.85,3.30688592]
[1765114474552,9.03108962,131.88,131.85,0.05688592]
[1765114474755,2.15,131.87,131.85,0.05688592]
[1765114476955,2.15,131.87,131.85,3.30688592]
[1765114477653,9.03108962,131.88,131.85,3.30688592]
[1765114477855,2.15,131.87,131.85,3.30688592]
[1765114478356,9.03108962,131.88,131.85,3.30688592]
[1765114478759,2.15,131.87,131.85,3.30688592]
[1765114479245,6.88108962,131.88,131.85,3.30688592]
[1765114479453,9.03108962,131.88,131.85,3.30688592]
[1765114479959,2.20688962,131.88,131.85,3.30688592]
[1765114482960,65.12,131.87,131.85,3.30688592]
[1765114483258,67.27,131.87,131.85,3.30688592]
[1765114485263,65.12,131.87,131.85,3.30688592]
[1765114485865,67.27,131.87,131.85,3.30688592]
[1765114486264,67.27,131.87,131.85,0.05688592]
[1765114490562,2.15,131.86,131.85,0.05688592]
[1765114491863,2.15,131.86,131.8,10.1577]
[1765114492164,2.15,131.86,131.8,3.33]
[1765114493065,2.19948253,131.84,131.82,3.38054548]
[1765114495561,67.27,131.83,131.82,0.05054548]
[1765114498465,67.27,131.83,131.76,3.17]
[1765114498770,2.15,131.82,131.77,3.17]
[1765114499063,6.8282,131.8,131.74,10.0007]
[1765114499269,2.15,131.78,131.74,3.17]
[1765114499570,0.05471627,131.77,131.75,3.2209616]
[1765114501676,2.15,131.76,131.75,0.0509616]
[1765114502371,2.15,131.76,131.7,3.17]
[1765114502563,67.27,131.75,131.7,3.17]
[1765114503274,0.05829613,131.74,131.72,3.17]
[1765114505472,0.05829613,131.74,131.72,10.0018]
[1765114505673,0.05829613,131.74,131.73,3.17]
[1765114508373,67.35,131.8,131.73,3.17]
[1765114508775,67.35,131.8,131.74,3.17]
[1765114509276,6.8277,131.81,131.71,106.2828]
[1765114509277,0.04850664,131.78,131.76,3.22273617]
[1765114520382,2.25850664,131.78,131.76,3.22273617]
[1765114520880,2.25850664,131.78,131.76,0.05273617]
[1765114524871,9.08770664,131.78,131.76,0.05273617]
[1765114525182,2.21,131.76,131.68,3.11]
[1765114526072,2.21,131.76,131.71,3.16452934]
[1765114526073,0.05495443,131.73,131.71,3.16452934]
[1765114530081,2.26495443,131.73,131.71,0.05452934]
[1765114530675,2.26495443,131.73,131.69,3.11]
[1765114530876,2.21,131.71,131.67,3.11]
[1765114531775,2.26786017,131.7,131.67,3.11]
[1765114533579,2.26786017,131.7,131.65,3.11]
[1765114533580,2.21,131.69,131.65,3.11]
[1765114533786,2.25955715,131.68,131.65,3.11]
[1765114534880,67.35,131.67,131.62,3.11]
[1765114535077,2.21,131.66,131.62,3.11]
[1765114535277,0.04814141,131.65,131.62,3.11]
[1765114536786,2.25814141,131.65,131.62,3.11]
[1765114538086,2.25814141,131.65,131.61,3.11]
[1765114538285,2.21,131.63,131.59,3.11]
[1765114539692,0.05699954,131.64,131.6,3.11]
[1765114540388,0.05699954,131.64,131.62,3.11]
[1765114541180,0.05699954,131.64,131.63,3.11]
[1765114543981,0.05699954,131.64,131.6,6.8381]
[1765114544196,0.05699954,131.64,131.61,3.11]
[1765114545290,0.05699954,131.64,131.61,9.9473]
[1765114545495,0.05699954,131.64,131.62,3.11]
[1765114546486,0.05699954,131.64,131.63,3.11]
[1765114551990,0.05699954,131.64,131.57,106.3931]
[1765114552195,0.05699954,131.64,131.59,3.1]
[1765114552500,2.26699954,131.64,131.59,3.1]
[1765114554103,2.26699954,131.64,131.6,3.1]
[1765114554998,0.05699954,131.64,131.6,3.1]
[1765114556604,2.26699954,131.64,131.6,3.1]
[1765114557606,0.05699954,131.64,131.6,3.1]
[1765114558101,0.05699954,131.64,131.61,6.8376]
[1765114558293,0.05699954,131.64,131.62,3.1]
[1765114559499,0.05699954,131.64,131.62,9.9371]
[1765114559703,0.05699954,131.64,131.63,3.1]
[1765114560410,2.27,131.7,131.65,3.1]
[1765114560610,2.27,131.7,131.63,3.1]
[1765114560903,2.27,131.68,131.61,9.9374]
[1765114561305,2.32517803,131.66,131.63,0.05503437]
[1765114565613,2.27,131.65,131.58,3.25]
[1765114566217,2.27,131.62,131.58,3.25]
[1765114566512,0.04897186,131.61,131.59,0.02142848]
[1765114566711,0.04897186,131.61,131.59,3.27142848]
[1765114567515,2.31897186,131.61,131.59,3.27142848]
[1765114568614,2.31897186,131.61,131.59,0.02142848]
[1765114569613,67.49897186,131.61,131.59,0.02142848]
[1765114569809,2.27,131.6,131.59,0.02142848]
[1765114571006,65.22897186,131.61,131.59,0.02142848]
[1765114571316,67.49897186,131.61,131.59,0.02142848]
[1765114572621,2.27,131.6,131.59,0.02142848]
[1765114577028,0.04897186,131.61,131.59,3.27142848]
[1765114580032,0.04897186,131.61,131.6,3.21]
[1765114580330,65.18,131.66,131.6,3.21]
[1765114580531,65.18,131.66,131.61,3.21]
[1765114580727,9.1044,131.68,131.61,3.21]
[1765114580923,65.18,131.67,131.61,3.21]
[1765114581118,67.5,131.67,131.61,3.21]
[1765114581328,67.5,131.67,131.63,0.05589126]
[1765114581329,2.32,131.64,131.63,0.05589126]
[1765114582424,6.837,131.63,131.56,10.0501]
[1765114582625,67.45,131.62,131.56,10.0501]
[1765114583428,0.05232775,131.6,131.56,10.0501]
[1765114583729,0.05232775,131.6,131.57,3.21]
[1765114584840,2.32232775,131.6,131.57,3.21]
[1765114585742,0.05232775,131.6,131.57,3.21]
[1765114585933,0.05232775,131.6,131.58,3.21]
[1765114587034,0.00232775,131.6,131.58,10.0491]
[1765114587234,57.41,131.66,131.59,3.21]
[1765114588237,0.0484705,131.64,131.62,3.21]
[1765114593951,0.0484705,131.64,131.62,10.047]
[1765114594238,0.0484705,131.64,131.63,3.21]
[1765114594743,2.3684705,131.64,131.62,6.837]
[1765114595138,2.3684705,131.64,131.62,10.047]
[1765114595437,2.3684705,131.64,131.61,3.26122924]
[1765114595632,0.0484705,131.64,131.61,3.26122924]
[1765114597644,0.0484705,131.64,131.63,3.21]
[1765114605545,2.3684705,131.64,131.61,3.26122924]
[1765114606042,0.0484705,131.64,131.61,3.26122924]
[1765114607643,0.0484705,131.64,131.62,3.09]
[1765114614253,2.3684705,131.64,131.61,3.14122924]
[1765114617655,65.16,131.68,131.63,3.31]
[1765114617869,2.32,131.71,131.66,3.31]
[1765114618157,2.37,131.73,131.68,3.31]
[1765114618457,7.82609637,131.76,131.7,3.31]
[1765114618655,2.37,131.74,131.66,106.3229]
[1765114618858,2.37,131.74,131.67,10.1444]
[1765114619056,2.37,131.7,131.69,0.0579827]
[1765114620058,2.37,131.69,131.65,10.1456]
[1765114620256,67.51,131.68,131.65,10.1456]
[1765114621141,67.56075203,131.68,131.65,10.19423715]
[1765114622047,67.56075203,131.68,131.65,0.04863715]
[1765114622048,2.37,131.67,131.65,0.04863715]
[1765114627656,65.14,131.66,131.65,0.04863715]
[1765114627862,67.51,131.66,131.65,0.04863715]
[1765114631260,65.14,131.66,131.65,0.04863715]
[1765114631862,67.51,131.66,131.65,0.04863715]
[1765114634970,2.37,131.66,131.65,0.04863715]
[1765114635170,67.51,131.66,131.65,0.04863715]
[1765114635956,2.37,131.65,131.59,24.14965031]
[1765114636161,2.37,131.65,131.6,3.31]
[1765114636956,2.42038763,131.64,131.6,3.31]
[1765114640564,2.42038763,131.64,131.61,3.08]
[1765114640764,65.14,131.63,131.61,3.08]
[1765114641271,0.05038763,131.64,131.62,3.08]
[1765114641471,65.19038763,131.64,131.62,3.08]
[1765114643365,67.56038763,131.64,131.62,3.08]
[1765114643769,67.56038763,131.64,131.61,6.8374]
[1765114643965,2.37,131.63,131.61,3.08]
[1765114645667,65.14,131.63,131.61,3.08]
[1765114646569,0.05038763,131.64,131.61,9.9176]
[1765114646773,0.05038763,131.64,131.62,3.08]
[1765114651583,0.05038763,131.64,131.61,6.8376]
[1765114651584,2.42038763,131.64,131.61,9.9176]
[1765114651886,2.42038763,131.64,131.62,3.08]
[1765114653789,2.42038763,131.64,131.59,6.8385]
[1765114653989,2.42038763,131.64,131.6,3.08]
[1765114654192,2.42038763,131.64,131.57,3.08]
[1765114654388,9.25688763,131.64,131.58,6.8391]
[1765114654589,2.37,131.63,131.58,9.9191]
[1765114654794,2.37,131.63,131.59,3.08]
[1765114654995,67.51,131.62,131.59,3.08]
[1765114656491,67.51,131.62,131.59,9.9187]
[1765114656891,67.51,131.63,131.6,3.08]
[1765114657292,2.37,131.63,131.6,3.08]
[1765114657488,67.51,131.63,131.6,3.08]
[1765114659498,2.37,131.62,131.59,6.8387]
[1765114659896,2.37,131.61,131.59,6.8387]
[1765114660100,2.41807118,131.61,131.59,9.9187]
[1765114661000,0.04807118,131.61,131.59,9.9187]
[1765114661396,2.41807118,131.61,131.59,9.9187]
[1765114661997,2.41807118,131.61,131.59,6.8387]
[1765114664000,2.41807118,131.61,131.59,9.9187]
[1765114665096,0.04807118,131.61,131.6,3.08]
[1765114666103,67.51,131.65,131.62,3.08]
[1765114666604,2.37,131.67,131.63,9.9165]
[1765114666795,2.37,131.68,131.64,3.08]
[1765114666997,0.05384151,131.67,131.66,3.08]
[1765114668206,67.51,131.71,131.68,3.09]
[1765114668400,2.37,131.71,131.68,3.09]
[1765114668607,67.51,131.72,131.68,3.09]
[1765114668908,67.51,131.72,131.69,3.09]
[1765114669203,67.55870986,131.72,131.69,3.14603179]
[1765114669399,2.41870986,131.72,131.69,3.14603179]
[1765114669705,0.04870986,131.72,131.7,3.09]
[1765114670101,0.04870986,131.72,131.71,3.09]
[1765114677303,67.47,131.76,131.72,3.09]
[1765114678409,0.05231709,131.75,131.73,3.1441022]
[1765114681107,65.1,131.78,131.73,3.1441022]
[1765114681108,2.37,131.79,131.74,3.09]
[1765114681306,2.37,131.81,131.75,3.09]
[1765114682313,2.41747027,131.79,131.77,0.05246156]
[1765114683413,0.05747027,131.79,131.77,3.26246156]
[1765114690314,9.1861,131.84,131.77,3.26246156]
[1765114690515,67.42,131.83,131.77,3.26246156]
[1765114691322,2.36,131.8,131.77,0.05246156]
[1765114691922,0.04891973,131.81,131.77,3.26246156]
[1765114692121,2.40891973,131.81,131.77,3.26246156]
[1765114693030,2.36,131.8,131.77,3.26246156]
[1765114693325,2.36,131.8,131.77,0.05246156]
[1765114694625,2.36,131.8,131.77,3.26246156]
[1765114694823,67.46891973,131.81,131.77,3.26246156]
[1765114697227,65.10891973,131.81,131.77,3.26246156]
[1765114697424,67.46891973,131.81,131.77,3.26246156]
[1765114700725,2.40891973,131.81,131.77,3.26246156]
[1765114701034,2.40891973,131.81,131.77,0.05246156]
[1765114702225,2.40891973,131.81,131.77,3.23246156]
[1765114702430,67.44891973,131.81,131.77,3.23246156]
[1765114702626,2.36,131.8,131.77,3.23246156]
[1765114707248,2.36,131.8,131.77,0.05246156]
[1765114708440,9.1883,131.8,131.77,0.05246156]
[1765114708641,2.36,131.79,131.77,0.05246156]
[1765114711357,67.4,131.79,131.77,0.05246156]
[1765114711546,2.36,131.78,131.77,0.05246156]
[1765114712142,65.04,131.79,131.77,0.05246156]
[1765114712443,67.4,131.79,131.77,0.05246156]
[1765114712848,2.36,131.79,131.77,0.05246156]
[1765114713050,65.04,131.78,131.77,0.05246156]
[1765114714147,2.36,131.78,131.77,0.05246156]
[1765114714352,67.4,131.78,131.77,0.05246156]
[1765114715460,2.36,131.77,131.72,3.18]
[1765114716660,2.41584047,131.76,131.73,3.23504676]
[1765114718255,0.05584047,131.76,131.73,3.23504676]
[1765114719463,0.05584047,131.76,131.73,10.06644676]
[1765114719665,0.05584047,131.76,131.74,3.18]
[1765114720083,2.41584047,131.76,131.74,3.18]
[1765114720865,0.05584047,131.76,131.74,3.18]
[1765114721970,2.41584047,131.76,131.73,0.05504676]
[1765114722167,2.41584047,131.76,131.73,3.23504676]
[1765114723169,2.41584047,131.76,131.73,0.05504676]
[1765114727959,2.36,131.75,131.73,0.05504676]
[1765114728364,9.1907,131.75,131.73,0.05504676]
[1765114728566,2.36,131.74,131.73,0.05504676]
[1765114728968,2.36,131.74,131.69,3.09]
[1765114729164,2.36,131.72,131.69,3.09]
[1765114729670,2.36,131.72,131.67,6.8344]
[1765114729872,2.36,131.72,131.68,3.09]
[1765114730066,2.41032388,131.71,131.69,0.0573012]
[1765114730669,0.05032388,131.71,131.69,3.1473012]
[1765114733076,2.41032388,131.71,131.69,0.0573012]
[1765114739775,2.41032388,131.71,131.64,3.17]
[1765114740275,2.36,131.68,131.64,3.17]
[1765114740571,6.8337,131.69,131.6,14.00105031]
[1765114740572,2.36,131.66,131.61,3.17]
[1765114740877,2.36,131.66,131.62,0.05225585]
[1765114741976,9.1954,131.66,131.62,0.05225585]
[1765114742277,2.36,131.65,131.62,0.05225585]
[1765114742476,2.36,131.63,131.62,0.05225585]
[1765114742777,2.36,131.62,131.56,3.17]
[1765114743866,2.36,131.59,131.58,0.05162417]
[1765114744069,65.08,131.59,131.58,0.05162417]
[1765114744981,0.05715191,131.6,131.58,3.22162417]
[1765114747474,0.05715191,131.6,131.59,3.17]
[1765114747675,65.08,131.64,131.59,3.17]
[1765114747884,65.08,131.65,131.59,3.17]
[1765114748075,67.5,131.65,131.61,3.17]
[1765114748873,0.05646636,131.64,131.62,3.22477768]
[1765114751489,2.47646636,131.64,131.62,3.22477768]
[1765114751673,2.47646636,131.64,131.62,0.05477768]
[1765114752090,0.05646636,131.64,131.62,3.22477768]
[1765114752993,2.48,131.71,131.63,3.17]
[1765114753177,2.48,131.69,131.63,3.17]
[1765114753983,2.48,131.69,131.61,106.3624]
[1765114753984,0.05275139,131.67,131.65,3.22819485]
[1765114756287,2.53275139,131.67,131.65,0.05819485]
[1765114757292,0.05275139,131.67,131.65,3.22819485]
[1765114758288,2.53275139,131.67,131.65,0.05819485]
[1765114762099,0.05275139,131.67,131.65,3.14819485]
[1765114762295,2.53275139,131.67,131.59,3.09]
[1765114762487,2.42,131.66,131.59,3.09]
[1765114763293,2.47346317,131.64,131.61,0.04887234]
[1765114763698,2.47346317,131.64,131.61,3.13887234]
[1765114764491,2.47346317,131.64,131.61,0.04887234]
[1765114766603,2.47346317,131.64,131.61,3.13887234]
[1765114770589,2.47346317,131.64,131.61,0.04887234]
[1765114772098,2.47346317,131.64,131.61,3.13887234]
[1765114775510,67.57346317,131.64,131.61,3.13887234]
[1765114778304,2.42,131.63,131.61,3.13887234]
[1765114779506,2.42,131.63,131.61,0.04887234]
[1765114781318,2.42,131.62,131.61,0.04887234]
[1765114786122,67.52,131.62,131.61,0.04887234]
[1765114786825,65.1,131.63,131.61,3.13887234]
[1765114789319,65.1,131.63,131.61,0.04887234]
[1765114789525,2.42,131.62,131.61,0.04887234]
[1765114791422,67.52,131.63,131.61,3.41887234]
[1765114793729,65.1,131.63,131.61,3.41887234]
[1765114793930,0.05346317,131.64,131.61,3.41887234]
[1765114795431,2.47346317,131.64,131.61,3.41887234]
[1765114796122,0.05346317,131.64,131.63,3.31]
[1765114797017,2.47346317,131.64,131.62,3.31]
[1765114798130,0.05346317,131.64,131.62,3.31]
[1765114800824,2.47346317,131.64,131.61,6.88647234]
[1765114801023,2.47346317,131.64,131.61,0.04887234]
[1765114801633,2.42,131.62,131.61,0.04887234]
[1765114803229,2.42,131.63,131.61,0.04887234]
[1765114803818,2.42,131.63,131.61,3.35887234]
[1765114804024,2.42,131.63,131.61,0.04887234]
[1765114805730,2.42,131.63,131.61,3.35887234]
[1765114806620,2.47346317,131.64,131.61,3.35887234]
[1765114806825,0.05346317,131.64,131.61,3.35887234]
[1765114807830,0.05346317,131.64,131.62,3.31]
[1765114809628,2.47346317,131.64,131.61,6.88647234]
[1765114809828,2.47346317,131.64,131.61,0.04887234]
[1765114811131,2.47346317,131.64,131.61,3.35887234]